{"text_format":"1","workbook":"xlsx","n_sheets":4,"sheets":["Y5B","Y5G","Y6B","Y6G"],"not_rendered":{"charts":0,"images":0,"macros":0,"external_links":0,"defined_names":7,"comments":0,"pivot_tables":0},"unopened":[],"bounds":{"document_bytes":16777216,"sheet_cells":100000,"rows_first":2000,"rows_last":500,"rows_between":2000,"halvings":0,"cell_chars":16384,"cell_head_chars":4096},"cells_cut":0,"cells_raw":0,"read":"whole","date_system":"1900"}

{"sheet":"Y5B","index":0,"n_rows":46,"n_cols":11,"rows_kept":46,"cut":false,"hidden":false,"merged":[]}
[null,null,"Year 5 Boys",null,null,null,null,"Year 5 Boys"]
["Source.Name","Column1","Race Position","Name","Time in Seconds","School",null,"Team Results"]
["Moorfield Virtual Cross Country Race 2020.xlsx","Position 1",1,"Jimmy Cassandro",169,"Moorfield School",null,"School","Total Time in seconds","Position","Runners"]
["Moorfield Virtual Cross Country Race 2020.xlsx","Position 2",2,"William Leeming",171,"Moorfield School",null,"Moorfield School",{"$f":"SUMIF($F$3:$F$46,H4,$E$3:$E$46)","v":732},1,{"$f":"COUNTIF($F$3:$F$46,H4)","v":4}]
["Ben Rhydding Virtual Cross Country Race 2020.xlsx","Position 1",3,"Robert Carter",173,"Ben Rhydding",null,"Ben Rhydding",751,2,4]
["Menston Virtual Cross Country Race NOVEMBER 2020.xlsx","Position 1",4,"Teddy Thomas",180,"MENSTON",null,"Burley Oaks",757,3,4]
["Ben Rhydding Virtual Cross Country Race 2020.xlsx","Position 2",5,"Ben Winterbottom",182,"Ben Rhydding",null,"MENSTON",761,4,4]
["Ben Rhydding Virtual Cross Country Race 2020.xlsx","Position 3",6,"George Healey",183,"Ben Rhydding",null,"Burley and Woodhead CE Primary",792,5,4]
["BOPS Virtual Cross Country Race results 2020.xlsx","Position 1",7,"Woody Mitchell",184,"Burley Oaks",null,"ASHLANDS PRIMARY SCHOOL",850,6,4]
["Menston Virtual Cross Country Race NOVEMBER 2020.xlsx","Position 2",8,"Harry Lack ",184,"MENSTON",null,"Sacred Heart",879,7,4]
["BOPS Virtual Cross Country Race results 2020.xlsx","Position 2",9,"Thomas Murray",187,"Burley Oaks",null,"Addingham Primary School",894,8,4]
["Burley Woodhead Virtual Cross Country Race 2020.xlsx","Position 1",10,"Sam Nichols",189,"Burley and Woodhead CE Primary",null,"Ghyll Royd School",912,9,4]
["Burley Woodhead Virtual Cross Country Race 2020.xlsx","Position 2",11,"Will Collinge",190,"Burley and Woodhead CE Primary",null,"Westville House School",979,10,4]
["BOPS Virtual Cross Country Race results 2020.xlsx","Position 3",12,"Lucas Barton",192,"Burley Oaks",null,"All Saints",991,11,4]
["BOPS Virtual Cross Country Race results 2020.xlsx","Position 4",13,"Matthew Robson",194,"Burley Oaks"]
["Moorfield Virtual Cross Country Race 2020.xlsx","Position 3",14,"Ethan Bowles ",195,"Moorfield School"]
["Burley Woodhead Virtual Cross Country Race 2020.xlsx","Position 3",15,"Ralph Taylor",197,"Burley and Woodhead CE Primary"]
["Moorfield Virtual Cross Country Race 2020.xlsx","Position 4",16,"Amaan Riaz",197,"Moorfield School"]
["Menston Virtual Cross Country Race NOVEMBER 2020.xlsx","Position 3",17,"Sullivan Lowry",198,"MENSTON"]
["Menston Virtual Cross Country Race NOVEMBER 2020.xlsx","Position 4",18,"Ethan Dodds ",199,"MENSTON"]
["Sacred Heart Virtual Cross Country Race 2020.xlsx","Position 1",19,"Sam Woods",200,"Sacred Heart"]
["Addingham Virtual Cross Country Race 2020 (1).xlsx","Position 1",20,"Jacob Robinson",202,"Addingham Primary School"]
["Ghyll Royd Virtual Cross Country Race 2020.xlsx","Position 1",21,"Harry Stones",204,"Ghyll Royd School"]
["Addingham Virtual Cross Country Race 2020 (1).xlsx","Position 2",22,"Elliott Wintergill",205,"Addingham Primary School"]
["Ashlands Virtual Cross Country Race 2020.xlsx","Position 1",23,"Tom Sugden",210,"ASHLANDS PRIMARY SCHOOL"]
["Ashlands Virtual Cross Country Race 2020.xlsx","Position 2",24,"Hamish Hibbert",210,"ASHLANDS PRIMARY SCHOOL"]
["Ghyll Royd Virtual Cross Country Race 2020.xlsx","Position 2",25,"Gabriel Ridgeway",210,"Ghyll Royd School"]
["Ben Rhydding Virtual Cross Country Race 2020.xlsx","Position 4",26,"Charlie Eccles",213,"Ben Rhydding"]
["Sacred Heart Virtual Cross Country Race 2020.xlsx","Position 2",27,"Aston Town",213,"Sacred Heart"]
["Ashlands Virtual Cross Country Race 2020.xlsx","Position 3",28,"Roddy Parker",214,"ASHLANDS PRIMARY SCHOOL"]
["Ashlands Virtual Cross Country Race 2020.xlsx","Position 4",29,"Ethan Griffin",216,"ASHLANDS PRIMARY SCHOOL"]
["Burley Woodhead Virtual Cross Country Race 2020.xlsx","Position 4",30,"Charlie Cooper",216,"Burley and Woodhead CE Primary"]
["Ghyll Royd Virtual Cross Country Race 2020.xlsx","Position 3",31,"Freddie Foster-Powls",228,"Ghyll Royd School"]
["Sacred Heart Virtual Cross Country Race 2020.xlsx","Position 3",32,"Gabe Gibson",230,"Sacred Heart"]
["Addingham Virtual Cross Country Race 2020 (1).xlsx","Position 3",33,"Levi Meritt-Smith",230,"Addingham Primary School"]
["All Saints Virtual Cross Country Race.xlsx","Position 1",34,"Ethan Nicholson",230,"All Saints"]
["All Saints Virtual Cross Country Race.xlsx","Position 2",35,"William Anderson",232,"All Saints"]
["Sacred Heart Virtual Cross Country Race 2020.xlsx","Position 4",36,"Seb De Costa",236,"Sacred Heart"]
["Westville Virtual Cross Country Race 2020 Results.xlsx","Position 1",37,"Dougie Hartley",240,"Westville House School"]
["Westville Virtual Cross Country Race 2020 Results.xlsx","Position 2",38,"Henry Wood",246,"Westville House School"]
["Westville Virtual Cross Country Race 2020 Results.xlsx","Position 3",39,"Ben Gray",246,"Westville House School"]
["Westville Virtual Cross Country Race 2020 Results.xlsx","Position 4",40,"James Hammond",247,"Westville House School"]
["Addingham Virtual Cross Country Race 2020 (1).xlsx","Position 4",41,"Natty Truss",257,"Addingham Primary School"]
["All Saints Virtual Cross Country Race.xlsx","Position 4",42,"Angus McDermott",264,"All Saints"]
["All Saints Virtual Cross Country Race.xlsx","Position 3",43,"Julian Cork",265,"All Saints"]
["Ghyll Royd Virtual Cross Country Race 2020.xlsx","Position 4",44,"Kirkchai Dillion",270,"Ghyll Royd School"]

{"sheet":"Y5G","index":1,"n_rows":46,"n_cols":11,"rows_kept":46,"cut":false,"hidden":false,"merged":[]}
[null,null,"Year 5 Girls",null,null,null,null,"Year 5 Girls"]
["Source.Name","Column1","Race Position","Name","Time in Seconds","School",null,"Team Results"]
["Moorfield Virtual Cross Country Race 2020.xlsx","Position 2",1,"Olivia Peers Alton",187,"Moorfield School",null,"School","Total Time in seconds","Position","Runners"]
["Moorfield Virtual Cross Country Race 2020.xlsx","Position 3",2,"Catriona Wallace",191,"Moorfield School",null,"Moorfield School",{"$f":"SUMIF($F$3:$F$46,H4,$E$3:$E$46)","v":775},1,{"$f":"COUNTIF($F$3:$F$46,H4)","v":4}]
["Moorfield Virtual Cross Country Race 2020.xlsx","Position 4",3,"Leena Kamran",193,"Moorfield School",null,"Ben Rhydding",836,2,4]
["Ben Rhydding Virtual Cross Country Race 2020.xlsx","Position 1",4,"Iris Smith",199,"Ben Rhydding",null,"Burley Oaks",837,3,4]
["Burley Woodhead Virtual Cross Country Race 2020.xlsx","Position 1",5,"Amelia Nichols",199,"Burley and Woodhead CE Primary",null,"Burley and Woodhead CE Primary",874,4,4]
["BOPS Virtual Cross Country Race results 2020.xlsx","Position 1",6,"Sophie Barrick",201,"Burley Oaks",null,"ASHLANDS PRIMARY SCHOOL",890,5,4]
["Menston Virtual Cross Country Race NOVEMBER 2020.xlsx","Position 1",7,"Ellen Groom",202,"MENSTON",null,"Sacred Heart",893,6,4]
["BOPS Virtual Cross Country Race results 2020.xlsx","Position 2",8,"Tegan Edwards",204,"Burley Oaks",null,"MENSTON",928,7,4]
["Moorfield Virtual Cross Country Race 2020.xlsx","Position 1",9,"Lara Fearon",204,"Moorfield School",null,"Addingham Primary School",951,8,4]
["Ben Rhydding Virtual Cross Country Race 2020.xlsx","Position 2",10,"Emma Powell",205,"Ben Rhydding",null,"Westville House School",1059,9,4]
["BOPS Virtual Cross Country Race results 2020.xlsx","Position 3",11,"Ida Caseley",211,"Burley Oaks",null,"All Saints",1098,10,4]
["Ben Rhydding Virtual Cross Country Race 2020.xlsx","Position 3",12,"Sadie Eccles",212,"Ben Rhydding",null,"Ghyll Royd School",1264,11,4]
["Sacred Heart Virtual Cross Country Race 2020.xlsx","Position 1",13,"Maeve Doherty ",215,"Sacred Heart"]
["Ashlands Virtual Cross Country Race 2020.xlsx","Position 1",14,"Heidi Pearce",217,"ASHLANDS PRIMARY SCHOOL"]
["Ashlands Virtual Cross Country Race 2020.xlsx","Position 2",15,"Bella Atwell-Skevington",220,"ASHLANDS PRIMARY SCHOOL"]
["Ben Rhydding Virtual Cross Country Race 2020.xlsx","Position 4",16,"Isabel Felows",220,"Ben Rhydding"]
["Burley Woodhead Virtual Cross Country Race 2020.xlsx","Position 2",17,"Bea Turner",220,"Burley and Woodhead CE Primary"]
["Ashlands Virtual Cross Country Race 2020.xlsx","Position 3",18,"Grace Hartley",221,"ASHLANDS PRIMARY SCHOOL"]
["BOPS Virtual Cross Country Race results 2020.xlsx","Position 4",19,"Megan Powell",221,"Burley Oaks"]
["Burley Woodhead Virtual Cross Country Race 2020.xlsx","Position 3",20,"Annie Williams",221,"Burley and Woodhead CE Primary"]
["Sacred Heart Virtual Cross Country Race 2020.xlsx","Position 2",21,"Olivia Waddington",221,"Sacred Heart"]
["Addingham Virtual Cross Country Race 2020 (1).xlsx","Position 1",22,"Heather Crolla",225,"Addingham Primary School"]
["Sacred Heart Virtual Cross Country Race 2020.xlsx","Position 3",23,"Annie Sykes",225,"Sacred Heart"]
["Addingham Virtual Cross Country Race 2020 (1).xlsx","Position 2",24,"Amelie Malcolm",226,"Addingham Primary School"]
["Addingham Virtual Cross Country Race 2020 (1).xlsx","Position 3",25,"Martha Houlbrook",230,"Addingham Primary School"]
["Ashlands Virtual Cross Country Race 2020.xlsx","Position 4",26,"Alyssa Bakker",232,"ASHLANDS PRIMARY SCHOOL"]
["Sacred Heart Virtual Cross Country Race 2020.xlsx","Position 4",27,"Sofia Lambert",232,"Sacred Heart"]
["Burley Woodhead Virtual Cross Country Race 2020.xlsx","Position 4",28,"Alice Wade / Hollie Bloomer",234,"Burley and Woodhead CE Primary"]
["Menston Virtual Cross Country Race NOVEMBER 2020.xlsx","Position 2",29,"Beatrice Ritson",241,"MENSTON"]
["Menston Virtual Cross Country Race NOVEMBER 2020.xlsx","Position 3",30,"Lizzie Green halgh",242,"MENSTON"]
["Menston Virtual Cross Country Race NOVEMBER 2020.xlsx","Position 4",31,"Georgia Deyes",243,"MENSTON"]
["All Saints Virtual Cross Country Race.xlsx","Position 1",32,"Ellen Sembol ",257,"All Saints"]
["Westville Virtual Cross Country Race 2020 Results.xlsx","Position 1",33,"Elsie Farrar",258,"Westville House School"]
["Westville Virtual Cross Country Race 2020 Results.xlsx","Position 2",34,"Lois Brough",259,"Westville House School"]
["Westville Virtual Cross Country Race 2020 Results.xlsx","Position 3",35,"Summer Riddell",260,"Westville House School"]
["Ghyll Royd Virtual Cross Country Race 2020.xlsx","Position 1",36,"Jessica Cunningham",267,"Ghyll Royd School"]
["Addingham Virtual Cross Country Race 2020 (1).xlsx","Position 4",37,"Freya Robinson",270,"Addingham Primary School"]
["All Saints Virtual Cross Country Race.xlsx","Position 2",38,"Ireland Gill",278,"All Saints"]
["All Saints Virtual Cross Country Race.xlsx","Position 3",39,"Francis Parsons",279,"All Saints"]
["Westville Virtual Cross Country Race 2020 Results.xlsx","Position 4",40,"Summer Brown",282,"Westville House School"]
["All Saints Virtual Cross Country Race.xlsx","Position 4",41,"Olive Spiers",284,"All Saints"]
["Ghyll Royd Virtual Cross Country Race 2020.xlsx","Position 2",42,"Arabella Johnson",318,"Ghyll Royd School"]
["Ghyll Royd Virtual Cross Country Race 2020.xlsx","Position 3",43,"Lolah Cochrane",339,"Ghyll Royd School"]
["Ghyll Royd Virtual Cross Country Race 2020.xlsx","Position 4",44,"Rose Dhalla",340,"Ghyll Royd School"]

{"sheet":"Y6B","index":2,"n_rows":46,"n_cols":11,"rows_kept":46,"cut":false,"hidden":false,"merged":[]}
[null,null,"Year 6 Boys",null,null,null,null,"Year 6 Boys"]
["Source.Name","Column1","Race Position","Name","Time in Seconds","School",null,"Team Results"]
["BOPS Virtual Cross Country Race results 2020.xlsx","Position 1",1,"Hugo Bishop",160,"Burley Oaks",null,"School","Total Time in seconds","Position","Runners"]
["Ben Rhydding Virtual Cross Country Race 2020.xlsx","Position 1",2,"Ted Atkinson",176,"Ben Rhydding",null,"Burley Oaks",{"$f":"SUMIF($F$3:$F$45,H4,$E$3:$E$45)","v":719},1,{"$f":"COUNTIF($F$3:$F$45,H4)","v":4}]
["BOPS Virtual Cross Country Race results 2020.xlsx","Position 2",3,"Connor Dennis",181,"Burley Oaks",null,"Sacred Heart",748,2,4]
["Burley Woodhead Virtual Cross Country Race 2020.xlsx","Position 1",4,"James Lee",183,"Burley and Woodhead CE Primary",null,"MENSTON",788,4,4]
["Sacred Heart Virtual Cross Country Race 2020.xlsx","Position 1",5,"Isaac Sallu",183,"Sacred Heart",null,"Burley and Woodhead CE Primary",821,5,4]
["Sacred Heart Virtual Cross Country Race 2020.xlsx","Position 2",6,"Miller Junni",185,"Sacred Heart",null,"Ben Rhydding",825,3,4]
["Moorfield Virtual Cross Country Race 2020.xlsx","Position 1",7,"Arthur Joli ",185,"Moorfield School",null,"ASHLANDS PRIMARY SCHOOL",839,6,4]
["BOPS Virtual Cross Country Race results 2020.xlsx","Position 3",8,"Jacob Wood",186,"Burley Oaks",null,"Addingham Primary School",855,7,4]
["Ben Rhydding Virtual Cross Country Race 2020.xlsx","Position 2",9,"Adam Disney",189,"Ben Rhydding",null,"All Saints",973,8,4]
["Sacred Heart Virtual Cross Country Race 2020.xlsx","Position 3",10,"Finn McDonell",189,"Sacred Heart",null,"Westville House School",1050,9,4]
["Burley Woodhead Virtual Cross Country Race 2020.xlsx","Position 2",11,"William Johnson",191,"Burley and Woodhead CE Primary",null,"Ghyll Royd School",1088,10,4]
["Sacred Heart Virtual Cross Country Race 2020.xlsx","Position 4",12,"George Waddington",191,"Sacred Heart",null,"Moorfield School",591,"N/A",3]
["BOPS Virtual Cross Country Race results 2020.xlsx","Position 4",13,"Freddie Mitchell",192,"Burley Oaks"]
["Menston Virtual Cross Country Race NOVEMBER 2020.xlsx","Position 1",14,"Rufus Craig",193,"MENSTON"]
["Menston Virtual Cross Country Race NOVEMBER 2020.xlsx","Position 2",15,"Ashton Beadle",195,"MENSTON"]
["Menston Virtual Cross Country Race NOVEMBER 2020.xlsx","Position 3",16,"Robert Wood",200,"MENSTON"]
["Menston Virtual Cross Country Race NOVEMBER 2020.xlsx","Position 3",17,"Oscar Egan",200,"MENSTON"]
["Moorfield Virtual Cross Country Race 2020.xlsx","Position 2",18,"Ted Freeman",201,"Moorfield School"]
["Moorfield Virtual Cross Country Race 2020.xlsx","Position 3",19,"Dexter Barret ",205,"Moorfield School"]
["Ashlands Virtual Cross Country Race 2020.xlsx","Position 1",20,"Dylan Ayre",207,"ASHLANDS PRIMARY SCHOOL"]
["Addingham Virtual Cross Country Race 2020 (1).xlsx","Position 1",21,"Ben Ward",208,"Addingham Primary School"]
["Ashlands Virtual Cross Country Race 2020.xlsx","Position 2",22,"Nathan Riley",208,"ASHLANDS PRIMARY SCHOOL"]
["Ashlands Virtual Cross Country Race 2020.xlsx","Position 3",23,"Billy Tucker",208,"ASHLANDS PRIMARY SCHOOL"]
["Addingham Virtual Cross Country Race 2020 (1).xlsx","Position 2",24,"Eddie Agar",209,"Addingham Primary School"]
["Ben Rhydding Virtual Cross Country Race 2020.xlsx","Position 3",25,"Alex Rawse",209,"Ben Rhydding"]
["Addingham Virtual Cross Country Race 2020 (1).xlsx","Position 3",26,"Lucas Nowell",210,"Addingham Primary School"]
["Ashlands Virtual Cross Country Race 2020.xlsx","Position 4",27,"Harry Coffey",216,"ASHLANDS PRIMARY SCHOOL"]
["Burley Woodhead Virtual Cross Country Race 2020.xlsx","Position 3",28,"James Smith",223,"Burley and Woodhead CE Primary"]
["Burley Woodhead Virtual Cross Country Race 2020.xlsx","Position 4",29,"Carl Tetley",224,"Burley and Woodhead CE Primary"]
["Addingham Virtual Cross Country Race 2020 (1).xlsx","Position 4",30,"Daniel Garside",228,"Addingham Primary School"]
["All Saints Virtual Cross Country Race.xlsx","Position 1",31,"Chris Tolch",232,"All Saints"]
["All Saints Virtual Cross Country Race.xlsx","Position 2",32,"Adam Varney",238,"All Saints"]
["All Saints Virtual Cross Country Race.xlsx","Position 3",33,"Luke Armstrong",242,"All Saints"]
[null,null,34,"Casper Symonds",247,"Westville House School"]
["Ghyll Royd Virtual Cross Country Race 2020.xlsx","Position 1",35,"Alfie Ewles",250,"Ghyll Royd School"]
["Ben Rhydding Virtual Cross Country Race 2020.xlsx","Position 4",36,"Marvin Fougler",251,"Ben Rhydding"]
["Ghyll Royd Virtual Cross Country Race 2020.xlsx","Position 2",37,"Brandon Hatfield-Archer",257,"Ghyll Royd School"]
["All Saints Virtual Cross Country Race.xlsx","Position 4",38,"Christopher Lucas",261,"All Saints"]
["Ghyll Royd Virtual Cross Country Race 2020.xlsx","Position 3",39,"George Barnfather",262,"Ghyll Royd School"]
[null,null,40,"Freddie McCutcheon",263,"Westville House School"]
[null,null,41,"Alexander Collins",266,"Westville House School"]
[null,null,42,"Harri Hayre",274,"Westville House School"]
["Ghyll Royd Virtual Cross Country Race 2020.xlsx","Position 4",43,"Tobias Chowdhury-Nicholas",319,"Ghyll Royd School"]
["Moorfield Virtual Cross Country Race 2020.xlsx","Position 4"]

{"sheet":"Y6G","index":3,"n_rows":46,"n_cols":11,"rows_kept":46,"cut":false,"hidden":false,"merged":[]}
[null,null,"Year 6 Girls",null,null,null,null,"Year 6 Girls"]
["Source.Name","Column1","Race Position","Name","Time in Seconds","School",null,"Team Results"]
["BOPS Virtual Cross Country Race results 2020.xlsx","Position 1",1,"Isla Arundel",184,"Burley Oaks",null,"School","Total Time in seconds","Position","Runners"]
["BOPS Virtual Cross Country Race results 2020.xlsx","Position 2",2,"Amy Gordon",187,"Burley Oaks",null,"Burley Oaks",{"$f":"SUMIF($F$3:$F$44,H4,$E$3:$E$44)","v":764},1,{"$f":"COUNTIF($F$3:$F$44,H4)","v":4}]
["Moorfield Virtual Cross Country Race 2020.xlsx","Position 1",3,"Jasmin Rhodes",187,"Moorfield School",null,"Moorfield School",771,2,4]
["Moorfield Virtual Cross Country Race 2020.xlsx","Position 2",4,"Charlotte Braham - Smith",191,"Moorfield School",null,"Sacred Heart",803,3,4]
["Sacred Heart Virtual Cross Country Race 2020.xlsx","Position 1",5,"Niamh Goodall",193,"Sacred Heart",null,"Ben Rhydding",808,4,4]
["Ben Rhydding Virtual Cross Country Race 2020.xlsx","Position 1",6,"Sophia White",194,"Ben Rhydding",null,"Burley and Woodhead CE Primary",831,5,4]
["Burley Woodhead Virtual Cross Country Race 2020.xlsx","Position 1",7,"Courtney O'Connor",194,"Burley and Woodhead CE Primary",null,"MENSTON",898,6,4]
["BOPS Virtual Cross Country Race results 2020.xlsx","Position 3",8,"Dolly Gordon",196,"Burley Oaks",null,"ASHLANDS PRIMARY SCHOOL",986,7,4]
["Moorfield Virtual Cross Country Race 2020.xlsx","Position 3",9,"Evie Lewis",196,"Moorfield School",null,"All Saints",988,8,4]
["BOPS Virtual Cross Country Race results 2020.xlsx","Position 4",10,"Millie Porteous",197,"Burley Oaks",null,"Ghyll Royd School",1002,9,4]
["Moorfield Virtual Cross Country Race 2020.xlsx","Position 4",11,"Isla Hudson",197,"Moorfield School",null,"Addingham Primary School",1067,10,4]
["Ben Rhydding Virtual Cross Country Race 2020.xlsx","Position 2",12,"Emily Wood",199,"Ben Rhydding",null,"Westville House School",549,"N/A",2]
["Sacred Heart Virtual Cross Country Race 2020.xlsx","Position 2",13,"Amelia Walker",201,"Sacred Heart"]
["Sacred Heart Virtual Cross Country Race 2020.xlsx","Position 3",14,"Daisy Wild Edyavane ",203,"Sacred Heart"]
["Burley Woodhead Virtual Cross Country Race 2020.xlsx","Position 2",15,"Hollie Begbie",206,"Burley and Woodhead CE Primary"]
["Sacred Heart Virtual Cross Country Race 2020.xlsx","Position 4",16,"Holly Northway",206,"Sacred Heart"]
["Ben Rhydding Virtual Cross Country Race 2020.xlsx","Position 3",17,"Isabelle De La Poer",207,"Ben Rhydding"]
["Burley Woodhead Virtual Cross Country Race 2020.xlsx","Position 3",18,"Eva Errington",207,"Burley and Woodhead CE Primary"]
["Ben Rhydding Virtual Cross Country Race 2020.xlsx","Position 4",19,"Alexa White",208,"Ben Rhydding"]
["Menston Virtual Cross Country Race NOVEMBER 2020.xlsx","Position 1",20,"Abi Stirk",217,"MENSTON"]
["Burley Woodhead Virtual Cross Country Race 2020.xlsx","Position 4",21,"Elsie Knowles / Madeleine Kealey",224,"Burley and Woodhead CE Primary"]
["Ghyll Royd Virtual Cross Country Race 2020.xlsx","Position 1",22,"Lucy Usherwood",224,"Ghyll Royd School"]
["Menston Virtual Cross Country Race NOVEMBER 2020.xlsx","Position 2",23,"Caitlyn Wallis",225,"MENSTON"]
["Menston Virtual Cross Country Race NOVEMBER 2020.xlsx","Position 3",24,"Connie Peake",225,"MENSTON"]
["Menston Virtual Cross Country Race NOVEMBER 2020.xlsx","Position 4",25,"Scarlett Williams",231,"MENSTON"]
["Addingham Virtual Cross Country Race 2020 (1).xlsx","Position 1",26,"Sophie Swann",232,"Addingham Primary School"]
["Ghyll Royd Virtual Cross Country Race 2020.xlsx","Position 2",27,"Kitty Picken",232,"Ghyll Royd School"]
["Ghyll Royd Virtual Cross Country Race 2020.xlsx","Position 3",28,"Georgie Hughes",237,"Ghyll Royd School"]
["Ashlands Virtual Cross Country Race 2020.xlsx","Position 1",29,"Isla Barker",238,"ASHLANDS PRIMARY SCHOOL"]
["Ashlands Virtual Cross Country Race 2020.xlsx","Position 2",30,"Willow Scott",240,"ASHLANDS PRIMARY SCHOOL"]
["All Saints Virtual Cross Country Race.xlsx","Position 1",31,"Chloe Clarke",241,"All Saints"]
["Ashlands Virtual Cross Country Race 2020.xlsx","Position 3",32,"Anstice Williams",241,"ASHLANDS PRIMARY SCHOOL"]
["Addingham Virtual Cross Country Race 2020 (1).xlsx","Position 2",33,"India Webster",245,"Addingham Primary School"]
["All Saints Virtual Cross Country Race.xlsx","Position 2",34,"Hannah Miles",247,"All Saints"]
["All Saints Virtual Cross Country Race.xlsx","Position 3",35,"Lillian Sembol",247,"All Saints"]
["All Saints Virtual Cross Country Race.xlsx","Position 4",36,"Elsa Isherwood",253,"All Saints"]
["Ashlands Virtual Cross Country Race 2020.xlsx","Position 4",37,"Lola Stead",267,"ASHLANDS PRIMARY SCHOOL"]
["Addingham Virtual Cross Country Race 2020 (1).xlsx","Position 3",38,"Lexie Greensmith",270,"Addingham Primary School"]
["Westville Virtual Cross Country Race 2020 Results.xlsx","Position 1",39,"Greta Wilkinson",272,"Westville House School"]
["Westville Virtual Cross Country Race 2020 Results.xlsx","Position 2",40,"Seren Slade",277,"Westville House School"]
["Ghyll Royd Virtual Cross Country Race 2020.xlsx","Position 4",41,"Alice Pitman-Collins",309,"Ghyll Royd School"]
["Addingham Virtual Cross Country Race 2020 (1).xlsx","Position 4",42,"Ava Taylor",320,"Addingham Primary School"]
["Westville Virtual Cross Country Race 2020 Results.xlsx","Position 3"]
["Westville Virtual Cross Country Race 2020 Results.xlsx","Position 4"]